[Event "*** SCC Grand Prix: Titled Tuesday Blitz"]
[Site "Chess.com"]
[Date "2020.10.13"]
[Round "1"]
[White "Shivagami"]
[Black "Skatchkov_V"]
[Result "0-1"]
[WhiteElo "2241"]
[BlackElo "2573"]
[TimeControl "180+1"]
[EndTime "10:05:19 PDT"]
[Termination "Skatchkov_V won on time"]

1. d4 {[%clk 0:02:56.8]} 1... Nf6 {[%clk 0:02:59.3]} 2. c4 {[%clk 0:02:53.3]}
2... e6 {[%clk 0:02:58.6]} 3. Nc3 {[%clk 0:02:49.2]} 3... Bb4 {[%clk 0:02:56.8]}
4. f3 {[%clk 0:02:48.8]} 4... c5 {[%clk 0:02:54]} 5. d5 {[%clk 0:02:47.8]} 5...
O-O {[%clk 0:02:51.7]} 6. e4 {[%clk 0:02:47.2]} 6... b5 {[%clk 0:02:44.2]} 7.
Nh3 {[%clk 0:02:28]} 7... bxc4 {[%clk 0:02:40.3]} 8. Bxc4 {[%clk 0:02:26.1]}
8... Nxd5 {[%clk 0:02:38.8]} 9. Bxd5 {[%clk 0:02:20.8]} 9... exd5 {[%clk
0:02:37.4]} 10. Qxd5 {[%clk 0:02:20.6]} 10... Ba6 {[%clk 0:02:37.3]} 11. Qxa8
{[%clk 0:01:08.8]} 11... Bxc3+ {[%clk 0:02:33.3]} 12. bxc3 {[%clk 0:01:07.5]}
12... Qa5 {[%clk 0:02:33.3]} 13. Bd2 {[%clk 0:00:59.2]} 13... Nc6 {[%clk
0:02:33]} 14. Qxf8+ {[%clk 0:00:51.7]} 14... Kxf8 {[%clk 0:02:32.7]} 15. Kf2
{[%clk 0:00:52]} 15... Ne5 {[%clk 0:02:28.8]} 16. Nf4 {[%clk 0:00:49.3]} 16...
f6 {[%clk 0:02:19.6]} 17. Rhb1 {[%clk 0:00:44.1]} 17... Kf7 {[%clk 0:02:17.6]}
18. Rb8 {[%clk 0:00:36.8]} 18... Bc4 {[%clk 0:01:59.7]} 19. Ke3 {[%clk
0:00:21.4]} 19... Qa4 {[%clk 0:01:48.8]} 20. Rab1 {[%clk 0:00:17.3]} 20... g5
{[%clk 0:01:42]} 21. Nd5 {[%clk 0:00:15.1]} 21... Qc2 {[%clk 0:01:41.4]} 0-1

[Event "*** SCC Grand Prix: Titled Tuesday Blitz"]
[Site "Chess.com"]
[Date "2020.10.13"]
[Round "1"]
[White "Snegokhod"]
[Black "chito89"]
[Result "0-1"]
[WhiteElo "2408"]
[BlackElo "2802"]
[TimeControl "180+1"]
[EndTime "10:05:23 PDT"]
[Termination "chito89 won by checkmate"]

1. e4 {[%clk 0:03:00.9]} 1... c5 {[%clk 0:02:57.8]} 2. Nf3 {[%clk 0:03:00.4]}
2... e6 {[%clk 0:02:57.8]} 3. d3 {[%clk 0:03:00.2]} 3... d5 {[%clk 0:02:56.2]}
4. Nbd2 {[%clk 0:02:59.9]} 4... Nc6 {[%clk 0:02:56.1]} 5. g3 {[%clk 0:03:00.1]}
5... g6 {[%clk 0:02:56.2]} 6. Bg2 {[%clk 0:03:00.6]} 6... Bg7 {[%clk 0:02:56.1]}
7. O-O {[%clk 0:03:01.2]} 7... Nge7 {[%clk 0:02:56.3]} 8. Re1 {[%clk 0:03:01.7]}
8... b6 {[%clk 0:02:52]} 9. e5 {[%clk 0:03:00.4]} 9... Qc7 {[%clk 0:02:46.4]}
10. Qe2 {[%clk 0:03:00]} 10... h6 {[%clk 0:02:46.2]} 11. h4 {[%clk 0:02:59.7]}
11... g5 {[%clk 0:02:40.4]} 12. hxg5 {[%clk 0:02:58.7]} 12... hxg5 {[%clk
0:02:41.2]} 13. Nxg5 {[%clk 0:02:22.8]} 13... Qxe5 {[%clk 0:02:41]} 14. Qxe5
{[%clk 0:02:11]} 14... Nxe5 {[%clk 0:02:41.7]} 15. Ngf3 {[%clk 0:02:02.6]} 15...
N5c6 {[%clk 0:02:38.4]} 16. c3 {[%clk 0:01:57.4]} 16... Ba6 {[%clk 0:02:35.3]}
17. Bf1 {[%clk 0:01:56.5]} 17... O-O-O {[%clk 0:02:23.7]} 18. a3 {[%clk
0:01:56.2]} 18... Rh5 {[%clk 0:02:19.3]} 19. Kg2 {[%clk 0:01:50.6]} 19... Rdh8
{[%clk 0:02:14.8]} 20. Nh4 {[%clk 0:01:47.5]} 20... Bf6 {[%clk 0:02:07.8]} 21.
Ndf3 {[%clk 0:01:47]} 21... d4 {[%clk 0:02:06.1]} 22. c4 {[%clk 0:01:44.4]}
22... Bb7 {[%clk 0:02:05.4]} 23. Kg1 {[%clk 0:01:41.3]} 23... Nf5 {[%clk
0:01:55]} 24. Nxf5 {[%clk 0:01:13.9]} 24... Rh1+ {[%clk 0:01:46.7]} 25. Kg2
{[%clk 0:01:13.6]} 25... exf5 {[%clk 0:01:37.3]} 26. Be2 {[%clk 0:01:10.8]}
26... R1h7 {[%clk 0:01:19.8]} 27. Bf4 {[%clk 0:01:04.6]} 27... Ne5 {[%clk
0:01:16.6]} 28. Bxe5 {[%clk 0:01:03.8]} 28... Rh2+ {[%clk 0:01:15.8]} 29. Kf1
{[%clk 0:01:02.4]} 29... Rh1+ {[%clk 0:01:10.8]} 30. Ng1 {[%clk 0:01:01.6]}
30... Rxg1+ {[%clk 0:01:10.4]} 31. Kxg1 {[%clk 0:00:57.5]} 31... Rh1# {[%clk
0:01:09.7]} 0-1

[Event "*** SCC Grand Prix: Titled Tuesday Blitz"]
[Site "Chess.com"]
[Date "2020.10.13"]
[Round "1"]
[White "onnoelgersma"]
[Black "niki_2003"]
[Result "1-0"]
[WhiteElo "2497"]
[BlackElo "1746"]
[TimeControl "180+1"]
[EndTime "10:05:28 PDT"]
[Termination "onnoelgersma won by resignation"]

1. e4 {[%clk 0:03:00.9]} 1... c5 {[%clk 0:02:59.3]} 2. Nf3 {[%clk 0:03:01.3]}
2... d6 {[%clk 0:02:59.6]} 3. Bb5+ {[%clk 0:03:01.9]} 3... Bd7 {[%clk
0:02:58.5]} 4. a4 {[%clk 0:03:01.6]} 4... a6 {[%clk 0:02:56]} 5. Bxd7+ {[%clk
0:03:00.7]} 5... Nxd7 {[%clk 0:02:56.5]} 6. O-O {[%clk 0:02:58.8]} 6... Ngf6
{[%clk 0:02:56.3]} 7. Nc3 {[%clk 0:02:57.4]} 7... g6 {[%clk 0:02:55]} 8. Re1
{[%clk 0:02:55]} 8... Bg7 {[%clk 0:02:55.3]} 9. a5 {[%clk 0:02:55.5]} 9... O-O
{[%clk 0:02:52.1]} 10. d3 {[%clk 0:02:55.6]} 10... Ng4 {[%clk 0:02:49.9]} 11. h3
{[%clk 0:02:54.1]} 11... Nge5 {[%clk 0:02:50.1]} 12. Nxe5 {[%clk 0:02:54.6]}
12... Nxe5 {[%clk 0:02:49.4]} 13. Nd5 {[%clk 0:02:55.1]} 13... e6 {[%clk
0:02:47.6]} 14. Nb6 {[%clk 0:02:53.1]} 14... Rb8 {[%clk 0:02:47.7]} 15. Bf4
{[%clk 0:02:47.5]} 15... Nd7 {[%clk 0:02:46.9]} 16. Bxd6 {[%clk 0:02:39.4]}
16... Nxb6 {[%clk 0:02:40.7]} 17. Bxf8 {[%clk 0:02:38.5]} 17... Bxb2 {[%clk
0:02:29.6]} 18. Bxc5 {[%clk 0:01:54.7]} 18... Nd7 {[%clk 0:02:16.9]} 19. Rb1
{[%clk 0:01:49.7]} 19... Bc3 {[%clk 0:02:15.1]} 20. Bb4 {[%clk 0:01:47.3]} 20...
Bxe1 {[%clk 0:02:14.5]} 21. Qxe1 {[%clk 0:01:47.6]} 21... b6 {[%clk 0:02:10.7]}
22. axb6 {[%clk 0:01:46.5]} 22... Qxb6 {[%clk 0:02:09.9]} 23. Rb2 {[%clk
0:01:36.3]} 23... a5 {[%clk 0:01:46.8]} 24. Bc3 {[%clk 0:01:35.1]} 24... Qxb2
{[%clk 0:01:41]} 25. Bxb2 {[%clk 0:01:34.7]} 25... Rxb2 {[%clk 0:01:41.1]} 26.
Qxa5 {[%clk 0:01:34.8]} 26... Rxc2 {[%clk 0:01:41.5]} 27. d4 {[%clk 0:01:19.2]}
27... Nf6 {[%clk 0:01:36.8]} 28. d5 {[%clk 0:01:12.1]} 28... Nxe4 {[%clk
0:01:16.6]} 29. dxe6 {[%clk 0:01:09.1]} 29... fxe6 {[%clk 0:01:16]} 30. Qa8+
{[%clk 0:01:09.2]} 30... Kg7 {[%clk 0:01:12.8]} 31. Qxe4 {[%clk 0:01:09.5]}
31... Rc1+ {[%clk 0:01:12.3]} 32. Kh2 {[%clk 0:01:09.9]} 32... Rf1 {[%clk
0:01:08.8]} 33. Qd3 {[%clk 0:01:07.4]} 33... Kf7 {[%clk 0:01:03.7]} 34. Qxf1
{[%clk 0:01:06.8]} 1-0

[Event "*** SCC Grand Prix: Titled Tuesday Blitz"]
[Site "Chess.com"]
[Date "2020.10.13"]
[Round "1"]
[White "Alexsur1981"]
[Black "alejanchess73"]
[Result "1-0"]
[WhiteElo "2769"]
[BlackElo "2403"]
[TimeControl "180+1"]
[EndTime "10:05:33 PDT"]
[Termination "Alexsur1981 won by checkmate"]

1. e4 {[%clk 0:03:00.9]} 1... e6 {[%clk 0:03:00]} 2. d4 {[%clk 0:02:59.8]} 2...
d5 {[%clk 0:02:56.1]} 3. Nc3 {[%clk 0:03:00]} 3... Bb4 {[%clk 0:02:55.3]} 4.
exd5 {[%clk 0:03:00.3]} 4... exd5 {[%clk 0:02:53.9]} 5. Bd3 {[%clk 0:03:00.9]}
5... Nf6 {[%clk 0:02:53.1]} 6. Qf3 {[%clk 0:02:56]} 6... Bxc3+ {[%clk
0:02:52.5]} 7. bxc3 {[%clk 0:02:55.7]} 7... c6 {[%clk 0:02:51]} 8. h3 {[%clk
0:02:55.5]} 8... Nbd7 {[%clk 0:02:51]} 9. Ne2 {[%clk 0:02:55.3]} 9... O-O {[%clk
0:02:50.5]} 10. g4 {[%clk 0:02:52.9]} 10... Re8 {[%clk 0:02:49.5]} 11. Kf1
{[%clk 0:02:44.8]} 11... Ne4 {[%clk 0:02:48.2]} 12. Ng3 {[%clk 0:02:45.2]} 12...
Ndf6 {[%clk 0:02:38.6]} 13. Nf5 {[%clk 0:02:29.3]} 13... Bxf5 {[%clk 0:02:34]}
14. gxf5 {[%clk 0:02:24.3]} 14... Qa5 {[%clk 0:02:23.3]} 15. Rg1 {[%clk
0:02:10.7]} 15... Kh8 {[%clk 0:02:21.7]} 16. Rb1 {[%clk 0:02:04.5]} 16... b5
{[%clk 0:01:58.7]} 17. Rb3 {[%clk 0:02:03.6]} 17... Qxa2 {[%clk 0:01:45.8]} 18.
Kg2 {[%clk 0:01:55.8]} 18... Qa5 {[%clk 0:01:42.6]} 19. Bf4 {[%clk 0:01:48.8]}
19... Qd8 {[%clk 0:01:24.3]} 20. Kh1 {[%clk 0:01:45.7]} 20... a5 {[%clk
0:01:24.1]} 21. Rbb1 {[%clk 0:01:39.4]} 21... a4 {[%clk 0:01:23.7]} 22. Be5
{[%clk 0:01:36.5]} 22... Nxc3 {[%clk 0:01:15.3]} 23. Rbe1 {[%clk 0:01:27.4]}
23... Nce4 {[%clk 0:01:13.7]} 24. Bxe4 {[%clk 0:01:25.4]} 24... dxe4 {[%clk
0:01:11.9]} 25. Qf4 {[%clk 0:01:25.9]} 25... Rg8 {[%clk 0:01:06.6]} 26. Qh4
{[%clk 0:01:15]} 26... Nd5 {[%clk 0:00:59.3]} 27. Rg5 {[%clk 0:01:12.6]} 27...
e3 {[%clk 0:00:31.8]} 28. Qxh7+ {[%clk 0:01:11]} 28... Kxh7 {[%clk 0:00:31.1]}
29. Rh5# {[%clk 0:01:11.9]} 1-0

[Event "*** SCC Grand Prix: Titled Tuesday Blitz"]
[Site "Chess.com"]
[Date "2020.10.13"]
[Round "1"]
[White "shrek4life02"]
[Black "Colombiano07"]
[Result "1-0"]
[WhiteElo "2576"]
[BlackElo "2245"]
[TimeControl "180+1"]
[EndTime "10:05:34 PDT"]
[Termination "shrek4life02 won by resignation"]

1. d4 {[%clk 0:03:00.9]} 1... d5 {[%clk 0:02:53.3]} 2. Nc3 {[%clk 0:03:00.9]}
2... e6 {[%clk 0:02:49.3]} 3. Bf4 {[%clk 0:03:01.5]} 3... Bd6 {[%clk 0:02:49.2]}
4. Qd2 {[%clk 0:03:01.4]} 4... a6 {[%clk 0:02:48.4]} 5. f3 {[%clk 0:03:01.5]}
5... Ne7 {[%clk 0:02:46.8]} 6. e4 {[%clk 0:03:01.6]} 6... Bxf4 {[%clk 0:02:46]}
7. Qxf4 {[%clk 0:03:01.3]} 7... dxe4 {[%clk 0:02:46.5]} 8. Qxe4 {[%clk 0:03:00]}
8... Nd5 {[%clk 0:02:43.8]} 9. Nxd5 {[%clk 0:02:54.7]} 9... Qxd5 {[%clk
0:02:44.7]} 10. Bd3 {[%clk 0:02:47.2]} 10... Bd7 {[%clk 0:02:42.5]} 11. Ne2
{[%clk 0:02:44.3]} 11... Bc6 {[%clk 0:02:42.6]} 12. Qxd5 {[%clk 0:02:42.4]}
12... Bxd5 {[%clk 0:02:42.9]} 13. c4 {[%clk 0:02:41.9]} 13... Bc6 {[%clk
0:02:42.4]} 14. O-O-O {[%clk 0:02:42.6]} 14... O-O {[%clk 0:02:39.5]} 15. Nc3
{[%clk 0:02:43.2]} 15... b6 {[%clk 0:02:38.3]} 16. Rhe1 {[%clk 0:02:42.6]} 16...
Nd7 {[%clk 0:02:37.8]} 17. Be4 {[%clk 0:02:35.6]} 17... Bxe4 {[%clk 0:02:34.5]}
18. fxe4 {[%clk 0:02:34.2]} 18... e5 {[%clk 0:02:26.7]} 19. Nd5 {[%clk 0:02:28]}
19... Ra7 {[%clk 0:02:20.7]} 20. Ne7+ {[%clk 0:02:27.9]} 20... Kh8 {[%clk
0:02:20.4]} 21. Nc6 {[%clk 0:02:28.6]} 21... Rb7 {[%clk 0:02:19.8]} 22. dxe5
{[%clk 0:02:21.6]} 22... Nc5 {[%clk 0:02:15.3]} 23. b4 {[%clk 0:02:12.8]} 23...
Ne6 {[%clk 0:02:13.3]} 24. Rd7 {[%clk 0:02:10.2]} 24... g6 {[%clk 0:00:51.4]}
25. Rf1 {[%clk 0:02:01.6]} 25... Kg7 {[%clk 0:00:50.6]} 26. h4 {[%clk
0:01:57.9]} 26... h5 {[%clk 0:00:45.7]} 27. Rf6 {[%clk 0:01:54]} 27... Kg8
{[%clk 0:00:36.4]} 28. Ne7+ {[%clk 0:01:52.3]} 28... Kh8 {[%clk 0:00:36]} 29.
Rxe6 {[%clk 0:01:39.5]} 29... fxe6 {[%clk 0:00:33.5]} 30. Nxg6+ {[%clk 0:01:40]}
30... Kg8 {[%clk 0:00:34.4]} 31. Nxf8 {[%clk 0:01:39.5]} 31... Kxf8 {[%clk
0:00:35.3]} 32. Rh7 {[%clk 0:01:36.4]} 32... Ke8 {[%clk 0:00:31.1]} 33. Kb2
{[%clk 0:01:35.4]} 33... Kd8 {[%clk 0:00:31.1]} 34. Kc3 {[%clk 0:01:35.3]} 34...
Kc8 {[%clk 0:00:30.3]} 35. Rxh5 {[%clk 0:01:32.4]} 35... c5 {[%clk 0:00:28]} 36.
Rh8+ {[%clk 0:01:32.1]} 36... Kc7 {[%clk 0:00:28]} 37. Rh7+ {[%clk 0:01:33]}
37... Kc6 {[%clk 0:00:28.7]} 38. Rxb7 {[%clk 0:01:33.4]} 38... Kxb7 {[%clk
0:00:29.6]} 39. bxc5 {[%clk 0:01:34]} 39... bxc5 {[%clk 0:00:30.1]} 40. h5
{[%clk 0:01:34.7]} 1-0

[Event "*** SCC Grand Prix: Titled Tuesday Blitz"]
[Site "Chess.com"]
[Date "2020.10.13"]
[Round "1"]
[White "Gusarov91"]
[Black "HanSchut"]
[Result "1-0"]
[WhiteElo "2578"]
[BlackElo "2247"]
[TimeControl "180+1"]
[EndTime "10:05:35 PDT"]
[Termination "Gusarov91 won by resignation"]

1. d4 {[%clk 0:03:00.7]} 1... Nf6 {[%clk 0:02:58.7]} 2. Nf3 {[%clk 0:02:59.7]}
2... g6 {[%clk 0:02:58.4]} 3. c4 {[%clk 0:02:59.9]} 3... Bg7 {[%clk 0:02:58]} 4.
g3 {[%clk 0:03:00.5]} 4... O-O {[%clk 0:02:57.6]} 5. Bg2 {[%clk 0:03:01.1]} 5...
d5 {[%clk 0:02:58.3]} 6. O-O {[%clk 0:03:00.1]} 6... dxc4 {[%clk 0:02:58.7]} 7.
Na3 {[%clk 0:03:00.3]} 7... c5 {[%clk 0:02:51.8]} 8. dxc5 {[%clk 0:02:59.6]}
8... Qa5 {[%clk 0:02:49.4]} 9. Nxc4 {[%clk 0:02:58.6]} 9... Qxc5 {[%clk
0:02:48.9]} 10. Qd4 {[%clk 0:02:55.1]} 10... Na6 {[%clk 0:02:16.7]} 11. Qxc5
{[%clk 0:02:54.3]} 11... Nxc5 {[%clk 0:02:16.8]} 12. Be3 {[%clk 0:02:54.4]}
12... Be6 {[%clk 0:02:06.8]} 13. Rfc1 {[%clk 0:02:31.5]} 13... Rac8 {[%clk
0:01:47.6]} 14. Nd4 {[%clk 0:02:28.1]} 14... Bd5 {[%clk 0:01:24.9]} 15. Bh3
{[%clk 0:02:22.3]} 15... e6 {[%clk 0:01:16.3]} 16. Nd6 {[%clk 0:02:18.5]} 16...
b6 {[%clk 0:00:41.8]} 17. Nxc8 {[%clk 0:02:17.7]} 17... Rxc8 {[%clk 0:00:42.7]}
18. Nb5 {[%clk 0:02:07.4]} 18... a6 {[%clk 0:00:31.5]} 19. Nc3 {[%clk 0:02:04]}
19... Bb7 {[%clk 0:00:27.3]} 20. Bg2 {[%clk 0:02:03.3]} 20... Bxg2 {[%clk
0:00:24.7]} 21. Kxg2 {[%clk 0:02:04.2]} 21... Ng4 {[%clk 0:00:24.9]} 22. Bxc5
{[%clk 0:02:01.3]} 22... Rxc5 {[%clk 0:00:21.3]} 23. Na4 {[%clk 0:02:01.2]}
23... Rb5 {[%clk 0:00:21.3]} 24. Rc8+ {[%clk 0:02:00.6]} 24... Bf8 {[%clk
0:00:21.3]} 25. Rd1 {[%clk 0:01:59.9]} 25... Kg7 {[%clk 0:00:20.9]} 26. b3
{[%clk 0:01:59.8]} 26... Be7 {[%clk 0:00:16.8]} 27. Rd7 {[%clk 0:01:58.3]} 27...
Bg5 {[%clk 0:00:12.4]} 28. Rb7 {[%clk 0:01:54.4]} 28... Rf5 {[%clk 0:00:11.7]}
29. f4 {[%clk 0:01:53.3]} 29... Bf6 {[%clk 0:00:09.2]} 30. e4 {[%clk 0:01:50.5]}
30... Rb5 {[%clk 0:00:07.4]} 31. Rxb6 {[%clk 0:01:50]} 31... Ne3+ {[%clk
0:00:06.2]} 32. Kf3 {[%clk 0:01:49.9]} 32... Rxb6 {[%clk 0:00:07]} 33. Nxb6
{[%clk 0:01:49.6]} 33... Nf1 {[%clk 0:00:07.3]} 34. e5 {[%clk 0:01:46.2]} 34...
Nxh2+ {[%clk 0:00:07.1]} 35. Kg2 {[%clk 0:01:46.4]} 1-0

[Event "*** SCC Grand Prix: Titled Tuesday Blitz"]
[Site "Chess.com"]
[Date "2020.10.13"]
[Round "1"]
[White "Yaacovn"]
[Black "andresgv36"]
[Result "1-0"]
[WhiteElo "2765"]
[BlackElo "2400"]
[TimeControl "180+1"]
[EndTime "10:05:38 PDT"]
[Termination "Yaacovn won by resignation"]

1. d4 {[%clk 0:02:57.9]} 1... Nf6 {[%clk 0:02:54.8]} 2. e3 {[%clk 0:02:58]} 2...
d5 {[%clk 0:02:28.5]} 3. Bd3 {[%clk 0:02:56.7]} 3... e6 {[%clk 0:02:22.1]} 4.
Nd2 {[%clk 0:02:55.8]} 4... c5 {[%clk 0:02:21.5]} 5. c3 {[%clk 0:02:55.7]} 5...
Nc6 {[%clk 0:02:21.8]} 6. f4 {[%clk 0:02:55.4]} 6... Bd6 {[%clk 0:02:13.5]} 7.
Ngf3 {[%clk 0:02:54.4]} 7... O-O {[%clk 0:02:14.4]} 8. Ne5 {[%clk 0:02:54.6]}
8... Ne7 {[%clk 0:02:13.8]} 9. O-O {[%clk 0:02:54]} 9... b6 {[%clk 0:02:14.2]}
10. g4 {[%clk 0:02:53.3]} 10... Bb7 {[%clk 0:02:14.2]} 11. Qf3 {[%clk
0:02:53.7]} 11... Ng6 {[%clk 0:02:04.7]} 12. g5 {[%clk 0:02:50.8]} 12... Ne8
{[%clk 0:02:02.6]} 13. Qh5 {[%clk 0:02:50.9]} 13... Bxe5 {[%clk 0:01:55.3]} 14.
fxe5 {[%clk 0:02:36]} 14... Qe7 {[%clk 0:01:18.5]} 15. Rf3 {[%clk 0:02:31.2]}
15... f5 {[%clk 0:01:19]} 16. gxf6 {[%clk 0:02:22.7]} 16... gxf6 {[%clk
0:01:19.9]} 17. Bxg6 {[%clk 0:02:10.6]} 17... hxg6 {[%clk 0:01:20.8]} 18. Qxg6+
{[%clk 0:02:08.9]} 18... Qg7 {[%clk 0:01:19.4]} 19. Qxg7+ {[%clk 0:02:08.6]}
19... Kxg7 {[%clk 0:01:19.7]} 20. Rg3+ {[%clk 0:02:06.1]} 20... Kf7 {[%clk
0:01:17.8]} 21. Nf3 {[%clk 0:02:06.3]} 21... f5 {[%clk 0:01:14.1]} 22. b3 {[%clk
0:02:04.3]} 22... Ng7 {[%clk 0:01:01.7]} 23. Ba3 {[%clk 0:01:55.1]} 23... Rac8
{[%clk 0:01:01.9]} 24. Ng5+ {[%clk 0:01:53.4]} 24... Ke8 {[%clk 0:00:55.5]} 25.
Nh7 {[%clk 0:01:52.6]} 25... Rf7 {[%clk 0:00:55.5]} 26. Nf6+ {[%clk 0:01:49.1]}
26... Kd8 {[%clk 0:00:52.6]} 27. Kf2 {[%clk 0:01:47.7]} 27... cxd4 {[%clk
0:00:50.5]} 28. exd4 {[%clk 0:01:46.3]} 28... f4 {[%clk 0:00:42]} 29. Rh3 {[%clk
0:01:42.5]} 29... Kc7 {[%clk 0:00:37.6]} 30. Bd6+ {[%clk 0:01:35.1]} 30... Kc6
{[%clk 0:00:37.1]} 31. Rh7 {[%clk 0:01:34.3]} 1-0

[Event "*** SCC Grand Prix: Titled Tuesday Blitz"]
[Site "Chess.com"]
[Date "2020.10.13"]
[Round "1"]
[White "saraswathii"]
[Black "econpower"]
[Result "1-0"]
[WhiteElo "2386"]
[BlackElo "2704"]
[TimeControl "180+1"]
[EndTime "10:05:43 PDT"]
[Termination "saraswathii won on time"]

1. e4 {[%clk 0:02:57.6]} 1... d6 {[%clk 0:02:59.7]} 2. d3 {[%clk 0:02:57.1]}
2... Nf6 {[%clk 0:03:00.4]} 3. Nf3 {[%clk 0:02:56.9]} 3... c5 {[%clk 0:03:00.7]}
4. g3 {[%clk 0:02:53.6]} 4... g6 {[%clk 0:03:01.1]} 5. Bg2 {[%clk 0:02:48.9]}
5... Bg7 {[%clk 0:03:02]} 6. O-O {[%clk 0:02:48.1]} 6... O-O {[%clk 0:03:02.6]}
7. c3 {[%clk 0:02:48.1]} 7... Nc6 {[%clk 0:03:02.8]} 8. Qe2 {[%clk 0:02:43.5]}
8... e5 {[%clk 0:02:59.2]} 9. a3 {[%clk 0:02:31.7]} 9... Re8 {[%clk 0:02:54.7]}
10. b4 {[%clk 0:02:29.6]} 10... a6 {[%clk 0:02:52.9]} 11. Nbd2 {[%clk
0:02:25.9]} 11... Qc7 {[%clk 0:02:45.3]} 12. Nc4 {[%clk 0:02:24.8]} 12... d5
{[%clk 0:02:29.8]} 13. Ncd2 {[%clk 0:02:19.1]} 13... d4 {[%clk 0:02:11.4]} 14.
Bb2 {[%clk 0:02:13.6]} 14... cxb4 {[%clk 0:01:48]} 15. cxd4 {[%clk 0:02:03]}
15... bxa3 {[%clk 0:01:47.9]} 16. Rxa3 {[%clk 0:02:02.1]} 16... exd4 {[%clk
0:01:47.6]} 17. Nxd4 {[%clk 0:02:01.1]} 17... Bg4 {[%clk 0:01:35.5]} 18. N4f3
{[%clk 0:01:58.8]} 18... Nxe4 {[%clk 0:01:25.8]} 19. Nxe4 {[%clk 0:01:58.1]}
19... f5 {[%clk 0:01:25]} 20. Bxg7 {[%clk 0:01:54.6]} 20... Qxg7 {[%clk
0:01:25]} 21. Qa2+ {[%clk 0:01:53.4]} 21... Kh8 {[%clk 0:01:23.8]} 22. Nd6
{[%clk 0:01:51.3]} 22... Re7 {[%clk 0:01:22.9]} 23. Ng5 {[%clk 0:01:49.3]} 23...
Ne5 {[%clk 0:01:19.6]} 24. d4 {[%clk 0:01:48.7]} 24... h6 {[%clk 0:01:19.3]} 25.
Ne6 {[%clk 0:01:30.6]} 25... Qf6 {[%clk 0:00:30.7]} 26. dxe5 {[%clk 0:01:29.2]}
26... Qxe6 {[%clk 0:00:31.1]} 27. Qxe6 {[%clk 0:01:28.3]} 27... Rxe6 {[%clk
0:00:31.5]} 28. f4 {[%clk 0:01:28.3]} 1-0

[Event "*** SCC Grand Prix: Titled Tuesday Blitz"]
[Site "Chess.com"]
[Date "2020.10.13"]
[Round "1"]
[White "sjam6687"]
[Black "Klavdia_Nik"]
[Result "1-0"]
[WhiteElo "2530"]
[BlackElo "2134"]
[TimeControl "180+1"]
[EndTime "10:05:43 PDT"]
[Termination "sjam6687 won on time"]

1. d4 {[%clk 0:03:00.7]} 1... Nf6 {[%clk 0:02:03.7]} 2. c4 {[%clk 0:02:58.9]}
2... c5 {[%clk 0:02:01.6]} 3. d5 {[%clk 0:02:56]} 3... b5 {[%clk 0:01:59]} 4.
Nc3 {[%clk 0:02:55.8]} 4... bxc4 {[%clk 0:01:56.5]} 5. e4 {[%clk 0:02:53.8]}
5... d6 {[%clk 0:01:56.7]} 6. Bxc4 {[%clk 0:02:52.9]} 6... g6 {[%clk 0:01:27.2]}
7. f4 {[%clk 0:02:52.4]} 7... Bg7 {[%clk 0:01:26.8]} 8. Nf3 {[%clk 0:02:52.6]}
8... O-O {[%clk 0:01:27.1]} 9. O-O {[%clk 0:02:51.2]} 9... Nfd7 {[%clk
0:01:20.6]} 10. Qe2 {[%clk 0:02:50.1]} 10... Nb6 {[%clk 0:01:04]} 11. Bd3 {[%clk
0:02:45.7]} 11... Bg4 {[%clk 0:01:03.5]} 12. Be3 {[%clk 0:02:41.4]} 12... Bxf3
{[%clk 0:01:01.4]} 13. Rxf3 {[%clk 0:02:36.8]} 13... N8d7 {[%clk 0:00:56.6]} 14.
g4 {[%clk 0:02:32.9]} 14... a5 {[%clk 0:00:55.8]} 15. h4 {[%clk 0:02:29.9]}
15... a4 {[%clk 0:00:06.5]} 16. a3 {[%clk 0:02:24.1]} 16... Nf6 {[%clk
0:00:05.5]} 17. Qg2 {[%clk 0:02:18.2]} 17... Qc8 {[%clk 0:00:05.2]} 18. g5
{[%clk 0:02:16.4]} 18... Nh5 {[%clk 0:00:04.2]} 19. Be2 {[%clk 0:02:13.4]} 19...
Nd7 {[%clk 0:00:03.3]} 20. Rf2 {[%clk 0:02:08.8]} 20... Bxc3 {[%clk 0:00:01.3]}
21. bxc3 {[%clk 0:02:06.4]} 21... Ng7 {[%clk 0:00:02]} 22. h5 {[%clk 0:02:03.4]}
22... Rb8 {[%clk 0:00:02]} 23. hxg6 {[%clk 0:01:57.4]} 23... fxg6 {[%clk
0:00:02.2]} 24. Qh3 {[%clk 0:01:49.5]} 24... Qb7 {[%clk 0:00:01.6]} 25. Rh2
{[%clk 0:01:45.5]} 25... Qb2 {[%clk 0:00:01.6]} 26. Rf1 {[%clk 0:01:32.9]} 1-0

[Event "*** SCC Grand Prix: Titled Tuesday Blitz"]
[Site "Chess.com"]
[Date "2020.10.13"]
[Round "1"]
[White "AungTZ"]
[Black "m_ezat"]
[Result "0-1"]
[WhiteElo "2144"]
[BlackElo "2530"]
[TimeControl "180+1"]
[EndTime "10:05:45 PDT"]
[Termination "m_ezat won by checkmate"]

1. e4 {[%clk 0:02:57.1]} 1... c6 {[%clk 0:02:58.5]} 2. d4 {[%clk 0:02:55.4]}
2... d5 {[%clk 0:02:58.1]} 3. Nc3 {[%clk 0:02:54.6]} 3... dxe4 {[%clk 0:02:58]}
4. Nxe4 {[%clk 0:02:54.6]} 4... Nf6 {[%clk 0:02:58.3]} 5. Nxf6+ {[%clk
0:02:52.8]} 5... exf6 {[%clk 0:02:58.4]} 6. Nf3 {[%clk 0:02:52.7]} 6... Bd6
{[%clk 0:02:58.3]} 7. Bd3 {[%clk 0:02:52.5]} 7... O-O {[%clk 0:02:58.1]} 8. h3
{[%clk 0:02:49.9]} 8... Bf5 {[%clk 0:02:56.3]} 9. O-O {[%clk 0:02:48.7]} 9...
Bxd3 {[%clk 0:02:56]} 10. Qxd3 {[%clk 0:02:48.1]} 10... Nd7 {[%clk 0:02:54.1]}
11. Be3 {[%clk 0:02:46.2]} 11... c5 {[%clk 0:02:53]} 12. dxc5 {[%clk 0:02:34]}
12... Nxc5 {[%clk 0:02:50.7]} 13. Bxc5 {[%clk 0:02:32.7]} 13... Bxc5 {[%clk
0:02:50.3]} 14. Qe4 {[%clk 0:02:24]} 14... Qb6 {[%clk 0:02:45]} 15. b3 {[%clk
0:01:42.8]} 15... Rfe8 {[%clk 0:02:37.9]} 16. Qa4 {[%clk 0:01:30.2]} 16... Re2
{[%clk 0:02:32.9]} 17. c4 {[%clk 0:01:27]} 17... Rd8 {[%clk 0:02:00.1]} 18. Rfd1
{[%clk 0:01:03.3]} 18... Rde8 {[%clk 0:01:42.4]} 19. Kh1 {[%clk 0:00:45.3]}
19... g6 {[%clk 0:01:40.9]} 20. Rd7 {[%clk 0:00:19.5]} 20... Bxf2 {[%clk
0:01:23.2]} 21. Rad1 {[%clk 0:00:12.6]} 21... Bg3 {[%clk 0:01:22.2]} 22. Ng1
{[%clk 0:00:10.5]} 22... Re1 {[%clk 0:01:14.4]} 23. R7d3 {[%clk 0:00:09.5]}
23... Qxg1# {[%clk 0:01:12.1]} 0-1